fUSD/lending_fUSD_20241017
["ID","MTS","AMOUNT","RATE_DAILY","PERIOD"]
[340378454,1729143033548,-151.0,0.0001352,2]
[340378455,1729143033557,-188.014086,0.0001352,2]
[340378456,1729143033567,-151.0,0.0001352,2]
[340378457,1729143033576,-151.0,0.0001352,2]
[340378458,1729143033586,-251.8,0.00013521,2]
[340378459,1729143033596,-251.8,0.00013524,2]
[340378460,1729143033605,-251.8,0.00013528,2]
[340378461,1729143033615,-251.8,0.00013531,2]
[340378462,1729143033625,-251.8,0.00013535,2]
[340378463,1729143033635,-251.8,0.00013538,2]
[340378464,1729143033645,-251.8,0.00013542,2]
[340378465,1729143033654,-251.8,0.00013545,2]
[340378466,1729143033663,-251.8,0.00013549,2]
[340378467,1729143033673,-251.8,0.00013553,2]
[340378468,1729143033682,-251.8,0.00013556,2]
[340378469,1729143033692,-251.8,0.0001356,2]
[340378470,1729143033702,-151.0,0.0001356,2]
[340378471,1729143033712,-2500.0,0.00013616,2]
[340378472,1729143033721,-150.85862755,0.00013616,2]
[340378473,1729143033731,-200.0,0.00013699,2]
[340378474,1729143033741,-1003.03,0.00013706,2]
[340378475,1729143033750,-1003.03,0.00013706,2]
[340378476,1729143033760,-1003.03,0.00013706,2]
[340378477,1729143033769,-1003.03,0.00013706,2]
[340378478,1729143033778,-203.81067684,0.00013715,2]
[340378479,1729143033788,-151.0,0.00013716,2]
[340378480,1729143033798,-151.0,0.00013716,2]
[340378481,1729143033808,-151.0,0.00013716,2]
[340378482,1729143033818,-151.563776,0.00013716,2]
[340378483,1729143033827,-152.08527,0.00013716,2]
[340378484,1729143033837,-151.0,0.00013716,2]
[340378485,1729143033846,-151.0,0.00013716,2]
[340378486,1729143033855,-151.0,0.00013716,2]
[340378487,1729143033865,-151.0,0.00013716,2]
[340378488,1729143033874,-151.0,0.00013716,2]
[340378489,1729143033883,-151.0,0.00013716,2]
[340378490,1729143033893,-151.0,0.00013716,2]
[340378491,1729143033903,-1110.70872,0.00013716,2]
[340378492,1729143033913,-151.681825,0.00013716,2]
[340378493,1729143033923,-1110.70872,0.00013716,2]
[340378494,1729143033933,-8200.717994,0.00013716,2]
[340378495,1729143033942,-151.0,0.00013716,2]
[340378496,1729143033952,-8200.717994,0.00013716,2]
[340378497,1729143033962,-151.0,0.00013716,2]
[340378498,1729143033971,-151.0,0.00013716,2]
[340378499,1729143033981,-151.0,0.00013716,2]
[340378500,1729143033991,-151.0,0.00013716,2]
[340378501,1729143034000,-151.0,0.00013716,2]
[340378502,1729143034010,-457.668102,0.00013716,2]
[340378503,1729143034019,-827.245548,0.00013716,2]
[340378504,1729143034028,-457.668102,0.00013716,2]
[340378505,1729143034038,-827.245548,0.00013716,2]
[340378506,1729143034048,-151.0,0.00013716,2]
[340378507,1729143034058,-500.0,0.00013773,2]
[340378508,1729143034067,-259.51,0.00013788,2]
[340378509,1729143034077,-1003.03,0.0001379,2]
[340378510,1729143034086,-52878.9408332,0.000138,2]
[340378511,1729143034095,-151.0,0.000138,2]
[340378512,1729143034105,-151.0,0.000138,2]
[340378513,1729143034117,-457.668102,0.000138,2]
[340378514,1729143034127,-827.245548,0.000138,2]
[340378515,1729143034136,-457.668102,0.000138,2]
[340378516,1729143034146,-827.245548,0.000138,2]
[340378517,1729143034155,-151.0,0.000138,2]
[340378518,1729143034164,-99253.43469408,0.00013806,2]
[340378519,1729143034177,-2454.78838677,0.00013806,2]
[340378520,1729143034188,-9495.00216909,0.00013806,2]
[340378521,1729143034200,-4248.04854285,0.00013806,2]
[340378522,1729143034212,-10988.32599635,0.00013806,2]
[340378523,1729143034223,-55867.88712503,0.00013806,2]
[340378524,1729143034235,-4700.0,0.00013806,2]
[340378527,1729143037965,-812.158,0.00012391,2]
[340378528,1729143037976,-151.0,0.0001342,2]
[340378529,1729143037985,-151.0,0.00013716,2]
[340378530,1729143037994,-151.0,0.000138,2]
[340378531,1729143038003,-32496.53571369,0.00013806,2]
[340378532,1729143038024,-6903.18681663,0.00013806,2]
[340378533,1729143038247,-461.545,0.00013806,2]
[340378538,1729143042953,-454.252,0.00012391,2]
[340378539,1729143042964,-219.988,0.00013806,2]
[340378541,1729143045974,-169.174,0.00012391,2]
[340378542,1729143045983,-3940.09848484,0.00013806,2]
[340378543,1729143045992,-17626.3136111,0.00013806,2]
[340378544,1729143046002,-151.0,0.00013806,2]
[340378545,1729143046011,-151.0,0.00013806,2]
[340378546,1729143046020,-151.0,0.00013806,2]
[340378547,1729143046030,-170.294197,0.00013806,2]
[340378548,1729143046038,-151.0,0.00013806,2]
[340378549,1729143046047,-327.178261,0.00013806,2]
[340378550,1729143046056,-327.178261,0.00013806,2]
[340378551,1729143046066,-327.178261,0.00013806,2]
[340378552,1729143046075,-327.178261,0.00013806,2]
[340378553,1729143046084,-444.255154,0.00013806,2]
[340378554,1729143046093,-444.255154,0.00013806,2]
[340378555,1729143046102,-444.255154,0.00013806,2]
[340378556,1729143046111,-444.255154,0.00013806,2]
[340378557,1729143046121,-151.0,0.00013806,2]
[340378558,1729143046130,-241.015714,0.00013806,2]
[340378559,1729143046139,-241.015714,0.00013806,2]
[340378560,1729143046148,-241.015714,0.00013806,2]
[340378561,1729143046157,-241.015714,0.00013806,2]
[340378562,1729143046167,-151.0,0.00013806,2]
[340378563,1729143046176,-266.25447,0.00013806,2]
[340378564,1729143046185,-1110.70872,0.00013806,2]
[340378565,1729143046194,-1110.70872,0.00013806,2]
[340378566,1729143046203,-8200.717994,0.00013806,2]
[340378568,1729143046213,-151.0,0.00013806,2]
[340378570,1729143046226,-8200.717994,0.00013806,2]
[340378571,1729143046236,-151.0,0.00013806,2]
[340378572,1729143046245,-151.0,0.00013806,2]
[340378573,1729143046254,-151.0,0.00013806,2]
[340378574,1729143046263,-151.0,0.00013806,2]
[340378575,1729143046274,-151.0,0.00013806,2]
[340378576,1729143046284,-457.668102,0.00013806,2]
[340378578,1729143046293,-827.245548,0.00013806,2]
[340378579,1729143046301,-457.668102,0.00013806,2]
[340378580,1729143046310,-827.245548,0.00013806,2]
[340378581,1729143046320,-162.174021,0.00013806,2]
[340378582,1729143046329,-151.0,0.00013806,2]
[340378584,1729143046339,-151.0,0.00013816,2]
[340378585,1729143046350,-151.0,0.00013816,2]
[340378586,1729143046359,-151.0,0.00013816,2]
[340378587,1729143046369,-151.0,0.00013816,2]
[340378588,1729143046378,-151.0,0.00013816,2]
[340378589,1729143046387,-151.0,0.00013816,2]
[340378590,1729143046398,-151.0,0.00013816,2]
[340378591,1729143046408,-151.0,0.00013816,2]
[340378592,1729143046418,-299.399607,0.00013816,2]
[340378593,1729143046427,-151.0,0.00013816,2]
[340378594,1729143046436,-327.178261,0.00013816,2]
[340378595,1729143046445,-327.178261,0.00013816,2]
[340378596,1729143046454,-444.255154,0.00013816,2]
[340378597,1729143046466,-444.255154,0.00013816,2]
[340378598,1729143046475,-151.0,0.00013816,2]
[340378599,1729143046484,-241.015714,0.00013816,2]
[340378600,1729143046493,-241.015714,0.00013816,2]
[340378601,1729143046502,-1110.70872,0.00013816,2]
[340378602,1729143046511,-1110.70872,0.00013816,2]
[340378603,1729143046521,-184.0,0.00013824,2]
[340378604,1729143046529,-1000.0,0.000139,5]
[340378605,1729143046538,-215.47468189,0.00013951,2]
[340378606,1729143046547,-1000.0,0.00013961,2]
[340378607,1729143046558,-8200.717994,0.00013961,2]
[340378608,1729143046567,-151.0,0.00013961,2]
[340378609,1729143046577,-8200.717994,0.00013961,2]
[340378610,1729143046586,-208.50232,0.00013961,2]
[340378611,1729143046595,-151.0,0.00013961,2]
[340378612,1729143046605,-151.0,0.00013961,2]
[340378613,1729143046614,-151.551833,0.00013982,2]
[340378614,1729143046625,-151.0,0.00013982,2]
[340378615,1729143046634,-151.0,0.00013982,2]
[340378616,1729143046643,-457.668102,0.00013982,2]
[340378617,1729143046653,-827.245548,0.00013982,2]
[340378618,1729143046662,-457.668102,0.00013982,2]
[340378619,1729143046671,-827.245548,0.00013982,2]
[340378620,1729143046681,-151.0,0.00013982,2]
[340378621,1729143046691,-17626.3136111,0.00013982,2]
[340378622,1729143046699,-151.0,0.00013992,2]
[340378623,1729143046715,-151.970855,0.00013992,2]
[340378624,1729143046725,-151.0,0.00013992,2]
[340378625,1729143046734,-151.0,0.00013992,2]
[340378626,1729143046743,-151.0,0.00013992,2]
[340378627,1729143046752,-151.0,0.00013992,2]
[340378628,1729143046761,-130.83973559,0.00013992,2]
[340378629,1729143046774,-20.16026441,0.00013992,2]
[340378630,1729143046783,-151.0,0.00013992,2]
[340378631,1729143046792,-327.178261,0.00013992,2]
[340378632,1729143046801,-327.178261,0.00013992,2]
[340378633,1729143046810,-444.255154,0.00013992,2]
[340378634,1729143046819,-444.255154,0.00013992,2]
[340378635,1729143046832,-151.0,0.00013992,2]
[340378636,1729143046841,-105.06727719,0.00013992,2]
[340378637,1729143113546,164.88,0.00010959,2]
[340378650,1729143379586,183.07,0.00010473,2]
[340378661,1729143402577,550.0,0.0001,2]
[340378665,1729143521960,200.0,9.552e-05,2]
[340378666,1729143568180,533.0,0.00027,60]
[340378667,1729143581096,1154.69,0.00010912,2]
[340378696,1729144232241,-1096.95,0.00011243,2]
[340378697,1729144232252,-150.0,0.00011954,2]
[340378698,1729144232262,-600.0,0.00012,2]
[340378699,1729144232273,-150.0,0.00012838,2]
[340378700,1729144232283,-207.75442374,0.00012839,2]
[340378701,1729144232410,-352.24557626,0.00012839,2]
[340378702,1729144232420,-812.0,0.00012839,2]
[340378703,1729144232429,-449.0,0.00012839,2]
[340378704,1729144232438,-434.40384393,0.00012839,2]
[340378705,1729144232450,-797.20235852,0.00012839,2]
[340378706,1729144232461,-13.39379755,0.00012839,2]
[340378707,1729144232470,-555.0,0.00012839,2]
[340378708,1729144232479,-97.46359135,0.00012839,2]
[340378709,1729144232491,-52.53640865,0.00012839,2]
[340378710,1729144232500,-935.0,0.00012839,2]
[340378711,1729144232509,-913.44435978,0.00012839,2]
[340378712,1729144232531,-2443.55564022,0.00012839,2]
[340378713,1729144232540,-1415.43435978,0.00012839,2]
[340378769,1729144238180,-493.56564022,0.00012839,2]
[340378771,1729144238189,-520.70045003,0.00012839,2]
[340378776,1729144238240,-288.29954997,0.00012839,2]
[340378777,1729144238253,-329.20020003,0.00012839,2]
[340378778,1729144238266,-479.98079997,0.00012839,2]
[340378779,1729144238276,-150.0,0.00012839,2]
[340378780,1729144238285,-127.27781503,0.00012839,2]
[340378781,1729144238519,-561.711231,0.00012839,2]
[340378785,1729144240138,-461.01095397,0.00012839,2]
[340378786,1729144240148,-181.65,0.0001286,2]
[340378787,1729144240158,-250.0,0.00012876,2]
[340378788,1729144240168,-164.02,0.00012908,2]
[340378789,1729144240181,-250.0,0.00012969,2]
[340378790,1729144240191,-151.0,0.00013,4]
[340378791,1729144240201,-200.0,0.00013068,2]
[340378792,1729144240211,-158.74,0.00013071,2]
[340378793,1729144240220,-499.99,0.00013071,2]
[340378794,1729144240230,-500.0,0.00013084,2]
[340378795,1729144240239,-2751.0,0.00013084,2]
[340378796,1729144240248,-1410.47,0.00013089,2]
[340378797,1729144240258,-1052.0,0.000131,5]
[340378798,1729144240267,-200.0,0.00013116,2]
[340378799,1729144240278,-696.71,0.00013131,2]
[340378800,1729144240287,-250.0,0.00013132,2]
[340378801,1729144240296,-1000.0,0.00013177,2]
[340378802,1729144240306,-165.38,0.00013198,2]
[340378803,1729144240315,-781.08,0.00013246,2]
[340378804,1729144240325,-1096.95,0.00013507,2]
[340378805,1729144240334,-181.65,0.00013574,2]
[340378806,1729144240343,-200.0,0.00013699,2]
[340378807,1729144240353,-165.195,0.00013892,2]
[340378808,1729144240362,-151.4647678,0.00013973,2]
[340378810,1729144240371,-1006.16047213,0.00013977,2]
[340378811,1729144240380,-406.4759,0.00013978,2]
[340378812,1729144240389,-3883.7576,0.00013978,2]
[340378813,1729144240399,-3523.3564,0.00013978,2]
[340378814,1729144240407,-3970.15767918,0.00013978,2]
[340378815,1729144240416,-991.7978,0.00013978,2]
[340378816,1729144240426,-49579.95541334,0.00013978,2]
[340378870,1729144243152,-229.843,0.00012839,2]
[340378871,1729144243163,-5323.11249635,0.00013978,2]
[340378872,1729144243211,-993.56644484,0.00013978,2]
[340378878,1729144246246,-4615.31190174,0.00013978,2]
[340378879,1729144246303,-523.9,0.00013978,2]
[340378880,1729144246364,-706.47433059,0.00013978,2]
[340378881,1729144246375,-1256.84156019,0.00013978,2]
[340378882,1729144246482,-4646.22951804,0.00013978,2]
[340378883,1729144246493,-1718.84563765,0.00013978,2]
[340378884,1729144708810,161.26,0.00010959,2]
[340378887,1729145143952,200.0,0.00010904,2]
[340378888,1729145229991,550.0,0.0001,2]
[340378898,1729145432358,-150.0,0.00011071,2]
[340378899,1729145432368,-987.25,0.00011123,2]
[340378900,1729145432377,-600.0,0.00012,2]
[340378901,1729145432386,-150.0,0.00012837,2]
[340378902,1729145432395,-449.0,0.00012839,2]
[340378903,1729145432405,-1244.0,0.00012839,2]
[340378904,1729145432414,-812.0,0.00012839,2]
[340378905,1729145432423,-560.0,0.00012839,2]
[340378906,1729145432432,-3120.582,0.00012839,2]
[340378907,1729145432442,-1908.0,0.00012839,2]
[340378908,1729145432451,-748.544,0.00012839,2]
[340378909,1729145432461,-161.46,0.00012955,2]
[340378910,1729145432470,-165.38,0.00013016,2]
[340378911,1729145432479,-250.0,0.00013027,2]
[340378912,1729145432488,-500.0,0.00013028,2]
[340378913,1729145432497,-250.0,0.00013088,2]
[340378914,1729145432507,-67.5084178,0.00013135,2]
[340378915,1729145432518,-182.4915822,0.00013135,2]
[340378916,1729145432528,-499.99,0.00013135,2]
[340378917,1729145432537,-705.23,0.00013141,2]
[340378918,1729145432547,-200.0,0.00013232,2]
[340378919,1729145432557,-2751.0,0.00013243,2]
[340378920,1729145432566,-172.15,0.00013257,2]
[340378921,1729145432575,-987.25,0.00013387,2]
[340378922,1729145432584,-2292.86,0.0001352,2]
[340378923,1729145432594,-1000.0,0.00013553,2]
[340378924,1729145432603,-167.0,0.0001357,2]
[340378925,1729145432612,-200.0,0.00013699,2]
[340378926,1729145432621,-161.46,0.00013764,2]
[340378927,1729145432630,-200.0,0.00013978,2]
[340378928,1729145432639,-650.0,0.00014,2]
[340378929,1729145432648,-150.0,0.00014,10]
[340378930,1729145432657,-924.0,0.00014002,2]
[340378931,1729145432667,-6350.1626,0.00014032,2]
[340378932,1729145432676,-5660.5244,0.00014032,2]
[340378933,1729145432685,-1803.6006,0.00014032,2]
[340378934,1729145432694,-200.0,0.00014118,2]
[340378935,1729145432704,-167.0,0.0001413,2]
[340378936,1729145432713,-1070.2432614,0.00014177,5]
[340378937,1729145432722,-200.0,0.00014259,2]
[340378938,1729145432731,-150.0,0.00014329,2]
[340378939,1729145432740,-150.0,0.00014329,2]
[340378940,1729145432749,-150.0,0.00014329,2]
[340378941,1729145432758,-309.83,0.00014329,2]
[340378942,1729145432767,-150.41,0.00014378,2]
[340378943,1729145432776,-200.0,0.00014402,2]
[340378944,1729145432785,-180.0,0.0001441,2]
[340378945,1729145432794,-150.85862752,0.00014559,2]
[340378946,1729145432803,-2500.0,0.00014559,2]
[340378947,1729145432812,-664.4081,0.00014569,2]
[340378948,1729145432821,-161.46,0.00014574,2]
[340378949,1729145432830,-167.0,0.00014612,2]
[340378950,1729145432839,-6302.86588188,0.00014649,2]
[340378951,1729145432878,-303.58925169,0.00014649,2]
[340378952,1729145432889,-3757.75108335,0.00014649,2]
[340378996,1729145440500,-3076.4,0.00014649,2]
[340378997,1729145440511,-38280.40160538,0.00014649,2]
[340378998,1729145440521,-413.622774,0.00014659,2]
[340378999,1729145440530,-413.622774,0.00014659,2]
[340379000,1729145440540,-413.622774,0.00014659,2]
[340379001,1729145440549,-413.622774,0.00014659,2]
[340379002,1729145440558,-180.716001,0.00014659,2]
[340379003,1729145440568,-180.716001,0.00014659,2]
[340379004,1729145440577,-180.716001,0.00014659,2]
[340379005,1729145440587,-180.716001,0.00014659,2]
[340379006,1729145440596,-151.0,0.00014659,2]
[340379007,1729145440605,-253.19048,0.00014659,2]
[340379008,1729145440615,-61573.75531896,0.00014659,2]
[340379022,1729145443395,-725.13301624,0.00014659,2]
[340379023,1729145443488,-8460.57945645,0.00014659,2]
[340379047,1729145446447,-398.22878381,0.00014659,2]
[340379048,1729145446466,-32719.61999997,0.00014659,2]
[340379051,1729145751236,5116.13680709,0.00027,60]
[340379052,1729145753077,750.9413346,0.0001,2]
[340379054,1729145805692,150.0,0.00010968,2]
[340379055,1729145898161,156.63,0.00010959,2]
[340379056,1729145927476,150.0,0.0001097,2]
[340379057,1729146048767,150.0,0.00010972,2]
[340379058,1729146080439,1000.0,0.00027,60]
[340379060,1729146170265,150.0,0.00010974,2]
[340379062,1729146291858,150.0,0.00010976,2]
[340379416,1729146413401,150.0,0.00010979,2]
[340379417,1729146534743,150.0,0.00010981,2]
[340379430,1729146631486,-926.81,0.00011232,2]
[340379431,1729146631495,-422.92,0.00013003,2]
[340379432,1729146631505,-250.0,0.00013027,2]
[340379433,1729146631514,-250.0,0.00013037,2]
[340379434,1729146631524,-1000.0,0.00013047,2]
[340379435,1729146631533,-225.88,0.00013047,2]
[340379436,1729146631542,-5234.37300446,0.00013047,2]
[340379437,1729146631551,-8947.46,0.00013059,2]
[340379438,1729146631561,-477.12,0.00013118,2]
[340379439,1729146631570,-250.0,0.00013122,2]
[340379440,1729146631581,-200.0,0.0001313,2]
[340379441,1729146631591,-557.36,0.00013171,2]
[340379442,1729146631601,-480.756,0.00013213,2]
[340379443,1729146631611,-1083.0,0.00013213,2]
[340379444,1729146631620,-499.99,0.00013213,2]
[340379445,1729146631630,-1858.234,0.00013213,2]
[340379446,1729146631639,-2751.0,0.00013229,2]
[340379447,1729146631649,-243.5,0.00013328,2]
[340379448,1729146631658,-634.3,0.00013328,2]
[340379449,1729146631668,-165.38,0.0001333,2]
[340379450,1729146631677,-926.81,0.00013496,2]
[340379451,1729146631686,-200.0,0.00013699,2]
[340379452,1729146631696,-624.86,0.00013794,2]
[340379453,1729146631705,-150.0,0.00013879,2]
[340379454,1729146631715,-92330.66620451,0.0001388,2]
[340379455,1729146631724,-167.0,0.00014122,2]
[340379456,1729146631734,-180.0,0.00014346,2]
[340379457,1729146631743,-3726.51548354,0.00014459,2]
[340379458,1729146631752,-150.85862752,0.00014459,2]
[340379459,1729146631763,-162.67896441,0.00014541,2]
[340379460,1729146631772,-22487.045,0.00014548,2]
[340379461,1729146631782,-1083.9308,0.0001455,2]
[340379462,1729146631793,-17324.0467,0.0001455,2]
[340379463,1729146631802,-192537.50599976,0.00014559,2]
[340379464,1729146631814,-12814.55283526,0.00014559,2]
[340379465,1729146631830,-5651.23055257,0.00014559,2]
[340379466,1729146631845,-2399.99999998,0.00014559,2]
[340379467,1729146631858,-2991.88164217,0.00014559,2]
[340379468,1729146631873,-3680.83258056,0.00014559,2]
[340379469,1729146631896,-19884.59248423,0.00014559,2]
[340379470,1729146631910,-328.1431498,0.00014559,2]
[340379471,1729146631925,-899.999998,0.00014559,2]
[340379472,1729146637546,-598.5770164,0.00013656,2]
[340379473,1729146637632,-2152.4229836,0.00013656,2]
[340379474,1729146637643,-12758.11100021,0.00014559,2]
[340379475,1729146637653,-1000.0,0.00014559,2]
[340379476,1729146637664,-1733.2429,0.00014559,2]
[340379477,1729146637673,-332.7600285,0.00014559,2]
[340379479,1729146639479,-85191.2854715,0.00014559,2]
[340379480,1729146639488,-500.0,0.00014559,2]
[340379481,1729146639497,-1000.0,0.00014559,2]
[340379482,1729146639507,-19020.1996,0.00014559,2]
[340379483,1729146639516,-2000.0,0.000146,2]
[340379484,1729146639526,-152.23641976,0.00014628,2]
[340379485,1729146639535,-500.0,0.00014638,2]
[340379486,1729146639545,-206.0900912,0.00014638,2]
[340379487,1729146639554,-507.00036604,0.00014638,2]
[340379488,1729146639563,-242.318721,0.00014638,2]
[340379489,1729146639572,-266.553092,0.00014638,2]
[340379490,1729146639581,-370.949434,0.00014638,2]
[340379491,1729146639590,-266.553092,0.00014638,2]
[340379492,1729146639600,-370.949434,0.00014638,2]
[340379493,1729146639610,-266.553092,0.00014638,2]
[340379494,1729146639621,-266.553092,0.00014638,2]
[340379495,1729146639632,-370.949434,0.00014638,2]
[340379496,1729146639642,-370.949434,0.00014638,2]
[340379497,1729146639652,-151.0,0.00014638,2]
[340379498,1729146639662,-151.0,0.00014638,2]
[340379499,1729146639672,-163.457636,0.00014638,2]
[340379500,1729146639682,-163.457636,0.00014638,2]
[340379501,1729146639694,-163.457636,0.00014638,2]
[340379502,1729146639704,-163.457636,0.00014638,2]
[340379503,1729146639714,-13656.33558523,0.00014638,2]
[340379504,1729146640083,-961.27203814,0.00014638,2]
[340379505,1729146640094,-1025.24744927,0.00014638,2]
[340379506,1729146640106,-85767.20021375,0.00014638,2]
[340379507,1729146640118,-510.75424561,0.00014638,2]
[340379508,1729146640129,-2763.65367387,0.00014638,2]
[340379509,1729146640141,-300.40407332,0.00014638,2]
[340379510,1729146640163,-7512.89457521,0.00014638,2]
[340379511,1729146640174,-6315.3454475,0.00014638,2]
[340379512,1729146640186,-1439.07083368,0.00014638,2]
[340379513,1729146640197,-1730.84596,0.00014638,2]
[340379514,1729146640210,-253.44497898,0.00014638,2]
[340379515,1729146640223,-556.86577081,0.00014638,2]
[340379516,1729146640234,-1333.56179996,0.00014638,2]
[340379517,1729146640619,-26367.96380267,0.00014638,2]
[340379518,1729146640629,-1422.50712275,0.00014639,2]
[340379519,1729146640641,-4853.09999989,0.00014639,2]
[340379520,1729146640652,-4925.52846422,0.00014639,2]
[340379521,1729146640664,-622.3913,0.00014639,2]
[340379522,1729146640676,-529.95,0.00014639,2]
[340379523,1729146640687,-21620.12629054,0.00014639,2]
[340379524,1729146640697,-12143.512729,0.00014639,2]
[340379525,1729146640706,-266.553092,0.00014639,2]
[340379526,1729146640715,-370.949434,0.00014639,2]
[340379527,1729146640725,-266.553092,0.00014639,2]
[340379528,1729146640735,-370.949434,0.00014639,2]
[340379529,1729146640744,-255.325082,0.00014639,2]
[340379530,1729146640754,-163.457636,0.00014639,2]
[340379531,1729146640763,-163.457636,0.00014639,2]
[340379532,1729146640773,-16986.8015887,0.0001464,2]
[340379533,1729146640782,-12143.512729,0.0001464,2]
[340379534,1729146640791,-168.49078559,0.00014641,2]
[340379535,1729146640801,-16986.8015887,0.00014649,2]
[340379536,1729146640810,-24287.025458,0.00014649,2]
[340379537,1729146640820,-151.0,0.00014649,2]
[340379538,1729146640830,-151.0,0.00014649,2]
[340379539,1729146640840,-330.89822,0.00014649,2]
[340379540,1729146640850,-330.89822,0.00014649,2]
[340379541,1729146640859,-196.306956,0.00014649,2]
[340379542,1729146640869,-196.306956,0.00014649,2]
[340379543,1729146640879,-151.0,0.00014649,2]
[340379544,1729146640888,-151.0,0.00014649,2]
[340379545,1729146640901,-981.706808,0.00014649,2]
[340379546,1729146640912,-151.0,0.00014649,2]
[340379547,1729146640922,-981.706808,0.00014649,2]
[340379548,1729146640931,-151.0,0.00014649,2]
[340379549,1729146640942,-154.184541,0.00014649,2]
[340379550,1729146640952,-151.0,0.00014649,2]
[340379551,1729146640962,-5830.617823,0.00014649,2]
[340379552,1729146640973,-5830.617823,0.00014649,2]
[340379553,1729146640982,-266.553092,0.00014649,2]
[340379554,1729146640993,-370.949434,0.00014649,2]
[340379555,1729146641003,-266.553092,0.00014649,2]
[340379556,1729146641013,-370.949434,0.00014649,2]
[340379557,1729146641023,-163.457636,0.00014649,2]
[340379558,1729146641032,-163.457636,0.00014649,2]
[340379559,1729146641042,-266.553092,0.0001465,2]
[340379560,1729146641052,-370.949434,0.0001465,2]
[340379561,1729146641062,-266.553092,0.0001465,2]
[340379562,1729146641071,-370.949434,0.0001465,2]
[340379563,1729146641080,-163.457636,0.0001465,2]
[340379564,1729146641089,-163.457636,0.0001465,2]
[340379565,1729146641099,-33973.6031774,0.0001465,2]
[340379566,1729146641109,-226.16794105,0.00014658,2]
[340379567,1729146641118,-693.88787749,0.00014658,2]
[340379568,1729146641128,-2000.0,0.00014659,2]
[340379569,1729146641137,-200.0,0.00014659,2]
[340379570,1729146641147,-151.695393,0.00014659,2]
[340379571,1729146641157,-151.0,0.00014659,2]
[340379572,1729146641166,-151.0,0.00014659,2]
[340379573,1729146641176,-151.0,0.00014659,2]
[340379574,1729146641186,-151.0,0.00014659,2]
[340379575,1729146641195,-151.0,0.00014659,2]
[340379576,1729146641205,-151.0,0.00014659,2]
[340379577,1729146641214,-151.0,0.00014659,2]
[340379578,1729146641224,-151.0,0.00014659,2]
[340379579,1729146641234,-151.0,0.00014659,2]
[340379580,1729146641243,-151.0,0.00014659,2]
[340379581,1729146641252,-151.0,0.00014659,2]
[340379582,1729146641261,-151.0,0.00014659,2]
[340379583,1729146641271,-151.0,0.00014659,2]
[340379584,1729146641280,-151.0,0.00014659,2]
[340379585,1729146641290,-151.0,0.00014659,2]
[340379586,1729146641299,-151.0,0.00014659,2]
[340379587,1729146641309,-228.834051,0.00014659,2]
[340379588,1729146641318,-228.834051,0.00014659,2]
[340379589,1729146641328,-151.0,0.00014659,2]
[340379590,1729146641337,-151.0,0.00014659,2]
[340379591,1729146641347,-228.834051,0.00014659,2]
[340379593,1729146641356,-228.834051,0.00014659,2]
[340379594,1729146641366,-151.0,0.00014659,2]
[340379595,1729146641375,-151.0,0.00014659,2]
[340379596,1729146641385,-151.0,0.00014659,2]
[340379597,1729146641395,-151.0,0.00014659,2]
[340379598,1729146641404,-777.496104,0.00014659,2]
[340379599,1729146641413,-151.0,0.00014659,2]
[340379600,1729146641423,-151.0,0.00014659,2]
[340379601,1729146641433,-777.496104,0.00014659,2]